fUST/lending_fUST_20241208
["ID","MTS","AMOUNT","RATE_DAILY","PERIOD"]
[344606459,1733604661078,-4231.2,0.00029403,30]
[344606461,1733604661087,-2261.16382647,0.00029454,2]
[344606463,1733604661096,-610.71073236,0.00029589,2]
[344606465,1733604661105,-500.0,0.00029589,2]
[344606467,1733604661115,-565.6861231,0.00029589,2]
[344606469,1733604661124,-672.51,0.00029589,2]
[344606471,1733604661134,-514.38,0.00029589,2]
[344606473,1733604661144,-500.0,0.00029589,2]
[344606476,1733604661154,-500.0,0.00029589,2]
[344606478,1733604661163,-501.94,0.00029589,2]
[344606479,1733604661172,-647.08,0.00029589,2]
[344606481,1733604661181,-746.14,0.00029589,2]
[344606483,1733604661190,-9475.98,0.00029589,2]
[344606485,1733604661200,-684.81,0.00029589,2]
[344606487,1733604661209,-500.0,0.00029589,2]
[344606489,1733604661219,-500.0,0.00029589,2]
[344606491,1733604661229,-1338.6,0.00029589,2]
[344606494,1733604661239,-500.0,0.00029589,2]
[344606496,1733604661249,-669.51,0.00029589,2]
[344606497,1733604661258,-500.0,0.00029589,2]
[344606499,1733604661268,-6486.52,0.00029589,2]
[344606501,1733604661278,-613.1,0.00029589,2]
[344606503,1733604661287,-513.53,0.00029589,2]
[344606505,1733604661296,-860.53,0.00029589,2]
[344606507,1733604661306,-1115.99,0.00029589,2]
[344606509,1733604661315,-1067.66,0.00029589,2]
[344606511,1733604661324,-770.68,0.00029589,2]
[344606513,1733604661334,-1055.0,0.00029589,2]
[344606515,1733604661343,-2135.01,0.00029589,2]
[344606517,1733604661353,-879.74,0.00029589,2]
[344606519,1733604661362,-500.0,0.00029589,2]
[344606521,1733604661371,-500.0,0.00029589,2]
[344606523,1733604661381,-527.55,0.00029589,2]
[344606525,1733604661389,-1139.59,0.00029589,2]
[344606527,1733604661402,-500.0,0.00029589,2]
[344606529,1733604661411,-507.86,0.00029589,2]
[344606531,1733604661420,-823.0,0.00029591,2]
[344606533,1733604661429,-2000.0,0.00029595,5]
[344606535,1733604661439,-20873.55,0.000296,30]
[344606537,1733604661448,-160.0,0.00029668,7]
[344606539,1733604661457,-3054.37,0.000297,30]
[344606541,1733604661466,-153.19,0.000298,31]
[344606543,1733604661476,-153.19,0.000298,31]
[344606545,1733604661485,-153.19,0.000298,31]
[344606547,1733604661494,-153.19,0.000298,31]
[344606549,1733604661503,-153.19,0.000298,31]
[344606551,1733604661512,-446.93,0.00029813,2]
[344606553,1733604661522,-152.569,0.0002982,120]
[344606555,1733604661531,-1311.33075397,0.00029849,2]
[344606557,1733604661540,-500.0,0.00029863,2]
[344606559,1733604661550,-672.51,0.00029863,2]
[344606561,1733604661559,-514.38,0.00029863,2]
[344606563,1733604661568,-500.0,0.00029863,2]
[344606565,1733604661577,-500.0,0.00029863,2]
[344606567,1733604661587,-501.94,0.00029863,2]
[344606569,1733604661596,-647.08,0.00029863,2]
[344606571,1733604661605,-746.14,0.00029863,2]
[344606573,1733604661614,-9475.98,0.00029863,2]
[344606575,1733604661624,-684.81,0.00029863,2]
[344606577,1733604661635,-500.0,0.00029863,2]
[344606579,1733604661645,-500.0,0.00029863,2]
[344606581,1733604661656,-1338.6,0.00029863,2]
[344606583,1733604661665,-500.0,0.00029863,2]
[344606585,1733604661675,-669.51,0.00029863,2]
[344606587,1733604661685,-500.0,0.00029863,2]
[344606589,1733604661694,-6486.52,0.00029863,2]
[344606591,1733604661704,-613.1,0.00029863,2]
[344606593,1733604661713,-513.53,0.00029863,2]
[344606595,1733604661723,-860.53,0.00029863,2]
[344606597,1733604661732,-1115.99,0.00029863,2]
[344606599,1733604661742,-1067.66,0.00029863,2]
[344606601,1733604661751,-770.68,0.00029863,2]
[344606603,1733604661760,-2135.01,0.00029863,2]
[344606604,1733604661770,-1055.0,0.00029863,2]
[344606606,1733604661782,-879.74,0.00029863,2]
[344606608,1733604661791,-500.0,0.00029863,2]
[344606610,1733604661800,-500.0,0.00029863,2]
[344606612,1733604661809,-527.55,0.00029863,2]
[344606614,1733604661820,-1139.59,0.00029863,2]
[344606616,1733604661829,-281.98200659,0.00029863,2]
[344606618,1733604661839,-507.86,0.00029863,2]
[344606620,1733604661848,-1404.0,0.0002989,23]
[344606622,1733604661858,-222883.70792121,0.0002999,7]
[344606637,1733604661994,-7044.82621707,0.0002999,7]
[344607472,1733605094374,167.450203,0.00013973,2]
[344607486,1733605732621,167.450203,0.00013973,2]
[344607644,1733605835262,-4932.6157188,0.00023893,2]
[344607645,1733605835272,-221.816917,0.00023986,2]
[344607646,1733605835282,-17.24234895,0.00024534,2]
[344607647,1733605835319,-156.81191579,0.00024534,2]
[344607648,1733605835329,-153.0,0.00024634,2]
[344607649,1733605835338,-300.0,0.00024656,2]
[344607650,1733605835348,-300.0,0.00024656,2]
[344607651,1733605835360,-500.0,0.00024657,2]
[344607652,1733605835370,-500.0,0.00024657,2]
[344607653,1733605835379,-289.25,0.000247,2]
[344607654,1733605835388,-387.69894405,0.00024831,2]
[344607655,1733605835397,-282.64547837,0.00024883,2]
[344607656,1733605835406,-131.02011179,0.000249,11]
[344607709,1733605838482,-168.97988821,0.000249,11]
[344607711,1733605838492,-500.0,0.00024929,2]
[344607713,1733605838501,-80.33708393,0.00024929,2]
[344607780,1733605843625,-419.66291607,0.00024929,2]
[344607781,1733605843634,-500.0,0.00024929,2]
[344607782,1733605843644,-500.0,0.00024929,2]
[344607783,1733605843653,-336.08618174,0.00024929,2]
[344607784,1733605843734,-163.91381826,0.00024929,2]
[344607785,1733605843744,-500.0,0.00024929,2]
[344607786,1733605843753,-500.0,0.00024929,2]
[344607787,1733605843763,-600.35060303,0.00024929,2]
[344607788,1733605843772,-896.97,0.00024929,2]
[344607789,1733605843782,-500.0,0.00024929,2]
[344607790,1733605843791,-500.0,0.00024929,2]
[344607791,1733605843800,-500.0,0.00024929,2]
[344607792,1733605843810,-500.0,0.00024929,2]
[344607793,1733605843819,-500.0,0.00024929,2]
[344607794,1733605843828,-500.0,0.00024929,2]
[344607795,1733605843838,-1081.09,0.00024929,2]
[344607796,1733605843848,-500.0,0.00024929,2]
[344607797,1733605843857,-1579.33,0.00024929,2]
[344607798,1733605843869,-356.53423536,0.00024929,2]
[344607799,1733605843881,-143.46576464,0.00024929,2]
[344607800,1733605843890,-500.0,0.0002493,2]
[344607801,1733605843900,-187.43928941,0.0002493,2]
[344607802,1733605843912,-312.56071059,0.0002493,2]
[344607803,1733605843921,-500.0,0.0002493,2]
[344607804,1733605843931,-500.0,0.0002493,2]
[344607805,1733605843941,-500.0,0.0002493,2]
[344607806,1733605843950,-613.78070158,0.0002493,2]
[344607807,1733605843959,-226.85104347,0.0002493,2]
[344607808,1733605843969,-500.0,0.0002493,2]
[344607809,1733605843979,-500.0,0.0002493,2]
[344607810,1733605843989,-98.43149035,0.0002493,2]
[344607811,1733605844001,-401.56850965,0.0002493,2]
[344607812,1733605844010,-500.0,0.0002493,2]
[344607813,1733605844019,-500.0,0.0002493,2]
[344607814,1733605844029,-500.0,0.0002493,2]
[344607815,1733605844039,-500.0,0.0002493,2]
[344607816,1733605844049,-500.0,0.00024931,2]
[344607817,1733605844059,-532.0,0.00024983,2]
[344607818,1733605844068,-2169.0,0.00024983,2]
[344607819,1733605844078,-2373.0,0.00024983,2]
[344607820,1733605844087,-500.0,0.00025203,2]
[344607821,1733605844097,-500.0,0.00025203,2]
[344607822,1733605844106,-500.0,0.00025203,2]
[344607823,1733605844119,-500.0,0.00025203,2]
[344607824,1733605844128,-500.0,0.00025203,2]
[344607825,1733605844138,-500.0,0.00025203,2]
[344607826,1733605844148,-500.0,0.00025203,2]
[344607827,1733605844157,-896.97,0.00025203,2]
[344607828,1733605844169,-487.32183092,0.00025203,2]
[344607829,1733605844179,-500.0,0.00025203,2]
[344607830,1733605844189,-500.0,0.00025203,2]
[344607831,1733605844198,-500.0,0.00025203,2]
[344607832,1733605844208,-500.0,0.00025203,2]
[344607833,1733605844217,-500.0,0.00025203,2]
[344607834,1733605844226,-1081.09,0.00025203,2]
[344607835,1733605844236,-500.0,0.00025203,2]
[344607836,1733605844245,-1579.33,0.00025203,2]
[344607837,1733605844255,-500.0,0.00025203,2]
[344607838,1733605844264,-500.0,0.00025204,2]
[344607839,1733605844274,-620.5973028,0.00025204,2]
[344607840,1733605844283,-500.0,0.00025204,2]
[344607841,1733605844292,-521.93435287,0.00025204,2]
[344607842,1733605844302,-468.62122017,0.00025204,2]
[344607847,1733606316037,175.034726,0.00013973,2]
[344607871,1733607035822,-816.76798082,0.00022,3]
[344607872,1733607035832,-1725.2480251,0.00024234,2]
[344607874,1733607035843,-162.97286763,0.000246,2]
[344607875,1733607035852,-275.33,0.000247,2]
[344607876,1733607035861,-257.57785244,0.00024874,2]
[344607877,1733607035870,-300.0,0.00024928,2]
[344607878,1733607035880,-300.0,0.00024928,2]
[344607879,1733607035889,-500.0,0.00024929,2]
[344607880,1733607035898,-500.0,0.00024929,2]
[344607881,1733607035907,-153.502,0.00025159,2]
[344607882,1733607035916,-1699.414,0.00025159,2]
[344607883,1733607035927,-500.0,0.000252,2]
[344607884,1733607035936,-500.0,0.000252,2]
[344607885,1733607035945,-500.0,0.000252,2]
[344607886,1733607035956,-500.0,0.000252,2]
[344607887,1733607035966,-500.0,0.000252,2]
[344607888,1733607035975,-1139.78153223,0.000252,2]
[344607889,1733607035988,-481.53846777,0.000252,2]
[344607890,1733607035998,-500.0,0.000252,2]
[344607891,1733607036008,-21.54928321,0.000252,2]
[344607892,1733607036019,-470.53872486,0.000252,2]
[344607893,1733607036030,-7.91199193,0.000252,2]
[344607894,1733607036040,-302.0,0.000252,2]
[344607895,1733607036049,-500.0,0.000252,2]
[344607896,1733607036059,-222.56424367,0.00025201,2]
[344607902,1733607038591,-277.43575633,0.00025201,2]
[344607903,1733607038604,-500.0,0.00025201,2]
[344607904,1733607038614,-500.0,0.00025201,2]
[344607905,1733607038624,-500.0,0.00025201,2]
[344607906,1733607038634,-500.0,0.00025201,2]
[344607907,1733607038643,-500.35,0.00025201,2]
[344607908,1733607038653,-500.0,0.00025201,2]
[344607909,1733607038662,-500.0,0.00025201,2]
[344607910,1733607038671,-500.0,0.00025201,2]
[344607912,1733607038681,-618.37,0.00025201,2]
[344607914,1733607038690,-500.0,0.00025201,2]
[344607916,1733607038699,-500.0,0.00025201,2]
[344607918,1733607038709,-500.0,0.00025201,2]
[344607919,1733607038718,-225.78338241,0.00025201,2]
[344607920,1733607038728,-500.0,0.00025201,2]
[344607921,1733607038737,-500.0,0.00025201,2]
[344607922,1733607038746,-348.75554268,0.00025201,2]
[344608115,1733607043925,-151.24445732,0.00025201,2]
[344608116,1733607043935,-500.0,0.00025201,2]
[344608117,1733607043944,-500.0,0.00025201,2]
[344608118,1733607043954,-500.0,0.00025201,2]
[344608119,1733607043965,-393.85303133,0.00025201,2]
[344608129,1733607190462,167.450203,0.00013973,2]
[344608138,1733607824975,167.450203,0.00013973,2]
[344608204,1733608231826,-300.0,0.00024219,2]
[344608206,1733608231836,-300.0,0.00024219,2]
[344608208,1733608231846,-1562.65881339,0.0002422,2]
[344608794,1733608237741,-1492.7308529,0.0002422,2]
[344608797,1733608237766,-2101.16999997,0.0002422,2]
[344608799,1733608237778,-3729.35805101,0.0002422,2]
[344608956,1733608239756,-12331.76350613,0.0002422,2]
[344608958,1733608239766,-11351.65020308,0.00024657,2]
[344608960,1733608239775,-500.0,0.00024657,2]
[344608962,1733608239785,-500.0,0.00024657,2]
[344608964,1733608239795,-500.0,0.00024657,2]
[344608966,1733608239804,-500.0,0.00024657,2]
[344608967,1733608239813,-500.0,0.00024657,2]
[344608968,1733608239823,-500.0,0.00024657,2]
[344608970,1733608239833,-610.26380779,0.00024657,2]
[344608972,1733608239842,-500.0,0.00024657,2]
[344608974,1733608239851,-500.0,0.00024657,2]
[344608976,1733608239860,-822.22,0.00024657,2]
[344608978,1733608239869,-500.0,0.00024657,2]
[344608980,1733608239878,-554.25309407,0.00024657,2]
[344608981,1733608239887,-500.0,0.00024657,2]
[344608983,1733608239896,-500.0,0.00024657,2]
[344608985,1733608239906,-991.0,0.00024657,2]
[344608987,1733608239915,-356.73,0.00024657,2]
[344608990,1733608239925,-500.0,0.00024657,2]
[344608992,1733608239935,-500.0,0.00024657,2]
[344608994,1733608239946,-1394.0925479,0.00024657,2]
[344609042,1733608243061,-159.6774521,0.00024657,2]
[344609043,1733608243071,-500.0,0.00024657,2]
[344609044,1733608243081,-500.0,0.00024657,2]
[344609045,1733608243091,-247.79,0.000247,2]
[344609046,1733608243101,-300.0,0.000249,11]
[344609047,1733608243110,-500.0,0.00024931,2]
[344609048,1733608243120,-452.6,0.00024931,2]
[344609049,1733608243129,-500.0,0.00024931,2]
[344609050,1733608243139,-500.0,0.00024931,2]
[344609051,1733608243148,-500.0,0.00024931,2]
[344609052,1733608243157,-822.22,0.00024931,2]
[344609053,1733608243167,-500.0,0.00024931,2]
[344609054,1733608243176,-500.0,0.00024931,2]
[344609055,1733608243185,-500.0,0.00024931,2]
[344609056,1733608243195,-991.0,0.00024931,2]
[344609057,1733608243206,-500.0,0.00024931,2]
[344609058,1733608243216,-500.0,0.00024931,2]
[344609059,1733608243226,-1553.77,0.00024931,2]
[344609060,1733608243236,-531.4584291,0.00024931,2]
[344609061,1733608243245,-500.0,0.00024931,2]
[344609062,1733608243255,-1622.73,0.00025,30]
[344609063,1733608243264,-307.1026221,0.000251,2]
[344609064,1733608243274,-500.0,0.000252,2]
[344609065,1733608243283,-500.0,0.000252,2]
[344609066,1733608243293,-500.0,0.000252,2]
[344609068,1733608243303,-500.0,0.000252,2]
[344609069,1733608243312,-500.0,0.000252,2]
[344609070,1733608243322,-500.0,0.000252,2]
[344609071,1733608243331,-500.0,0.000252,2]
[344609072,1733608243340,-500.0,0.000252,2]
[344609073,1733608243349,-500.0,0.00025201,2]
[344609074,1733608243358,-155.94,0.00025201,2]
[344609075,1733608243367,-500.0,0.00025201,2]
[344609076,1733608243377,-500.0,0.00025201,2]
[344609077,1733608243386,-500.0,0.00025201,2]
[344609078,1733608243395,-500.0,0.00025201,2]
[344609079,1733608243405,-500.0,0.00025201,2]
[344609080,1733608243414,-546.37,0.00025201,2]
[344609081,1733608243424,-500.0,0.00025201,2]
[344609082,1733608243433,-500.0,0.00025201,2]
[344609083,1733608243443,-500.0,0.00025201,2]
[344609084,1733608243452,-500.0,0.00025201,2]
[344609085,1733608243462,-500.0,0.00025201,2]
[344609086,1733608243582,-500.0,0.00025205,2]
[344609087,1733608243593,-582.80799753,0.00025205,2]
[344609088,1733608243603,-500.0,0.00025205,2]
[344609089,1733608243612,-500.0,0.00025205,2]
[344609090,1733608243622,-822.22,0.00025205,2]
[344609091,1733608243631,-588.51098695,0.00025205,2]
[344609092,1733608243640,-500.0,0.00025205,2]
[344609093,1733608243650,-500.0,0.00025205,2]
[344609094,1733608243659,-991.0,0.00025205,2]
[344609095,1733608243669,-500.0,0.00025205,2]
[344609096,1733608243679,-500.0,0.00025205,2]
[344609097,1733608243688,-1553.77,0.00025205,2]
[344609098,1733608243697,-500.0,0.00025205,2]
[344609099,1733608243706,-3200.0,0.00025292,2]
[344609100,1733608243715,-500.0,0.00025474,2]
[344609101,1733608243725,-290.69447251,0.00025474,2]
[344609102,1733608243734,-507.93456559,0.00025474,2]
[344609103,1733608243743,-582.45768122,0.00025475,2]
[344609104,1733608243752,-184.15390709,0.00025475,2]
[344609107,1733608596307,167.450203,0.00013973,2]
[344609109,1733609234316,167.450203,0.00013973,2]
[344609275,1733609431990,-223.01,0.000247,2]
[344609276,1733609432000,-58.2187712,0.000249,11]
[344609277,1733609432088,-241.7812288,0.000249,11]
[344609278,1733609432097,-500.0,0.00025475,2]
[344609279,1733609432108,-300.0,0.00025477,2]
[344609281,1733609432117,-173.9487712,0.00025477,2]
[344609391,1733609440589,-126.0512288,0.00025477,2]
[344609392,1733609440598,-178.21355284,0.00025478,2]
[344609393,1733609440608,-586.64403528,0.00025478,2]
[344609394,1733609440617,-500.0,0.00025478,2]
[344609395,1733609440627,-500.0,0.00025478,2]
[344609396,1733609440637,-500.0,0.00025478,2]
[344609397,1733609440646,-500.0,0.00025478,2]
[344609398,1733609440656,-500.0,0.00025478,2]
[344609399,1733609440665,-500.0,0.00025747,2]
[344609400,1733609440674,-500.0,0.00025747,2]
[344609401,1733609440683,-719.45,0.00025747,2]
[344609402,1733609440692,-867.12,0.00025747,2]
[344609403,1733609440701,-484.78765701,0.00025747,2]
[344609404,1733609440711,-500.0,0.00025747,2]
[344609405,1733609440720,-500.0,0.00025749,2]
[344609406,1733609440729,-500.0,0.00025751,2]
[344609407,1733609440738,-500.0,0.00025751,2]
[344609408,1733609440747,-1476.38,0.00025751,2]
[344609409,1733609440757,-500.0,0.00025751,2]
[344609410,1733609440766,-500.0,0.00025752,2]
[344609411,1733609440776,-168.75047009,0.00025752,2]
[344609412,1733609440786,-500.0,0.00025752,2]
[344609413,1733609440795,-500.0,0.00025752,2]
[344609414,1733609440804,-500.0,0.00025752,2]
[344609415,1733609440813,-151.0,0.0002584,4]
[344609416,1733609440823,-500.0,0.00026021,2]
[344609417,1733609440833,-500.0,0.00026021,2]
[344609418,1733609440842,-719.45,0.00026021,2]
[344609419,1733609440851,-867.12,0.00026021,2]
[344609420,1733609440862,-500.0,0.00026021,2]
[344609421,1733609440871,-151.0,0.00026022,7]
[344609422,1733609440881,-500.0,0.00026023,2]
[344609423,1733609440890,-500.0,0.00026025,2]
[344609424,1733609440899,-500.0,0.00026025,2]
[344609425,1733609440907,-1476.38,0.00026025,2]
[344609426,1733609440916,-500.0,0.00026025,2]
[344609427,1733609440926,-151.0,0.00026026,7]
[344609428,1733609440935,-151.0,0.00026026,7]
[344609429,1733609440944,-163.439392,0.00026026,7]
[344609430,1733609440953,-163.439392,0.00026026,7]
[344609431,1733609440962,-151.0,0.00026026,7]
[344609432,1733609440972,-151.0,0.00026026,7]
[344609433,1733609440981,-172.094319,0.00026026,7]
[344609434,1733609440990,-172.094319,0.00026026,7]
[344609435,1733609440999,-500.0,0.00026026,2]
[344609436,1733609441009,-500.0,0.00026026,2]
[344609437,1733609441018,-500.0,0.00026026,2]
[344609438,1733609441028,-500.0,0.00026026,2]
[344609439,1733609441037,-151.0,0.00026027,7]
[344609440,1733609441047,-151.0,0.00026027,7]
[344609441,1733609441056,-151.0,0.00026027,7]
[344609442,1733609441066,-247.31479353,0.00026199,2]
[344609443,1733609441075,-151.0,0.00026287,5]
[344609444,1733609441084,-270.70101693,0.00026295,2]
[344609445,1733609441094,-151.0,0.00026295,7]
[344609446,1733609441103,-151.0,0.00026295,7]
[344609447,1733609441112,-220.15006173,0.00026295,2]
[344609448,1733609441121,-719.45,0.00026295,2]
[344609449,1733609441130,-867.12,0.00026295,2]
[344609450,1733609441139,-500.0,0.00026295,2]
[344609451,1733609441148,-151.0,0.00026295,7]
[344609452,1733609441157,-151.0,0.00026296,7]
[344609453,1733609441167,-500.0,0.00026297,2]
[344609454,1733609441176,-151.0,0.00026297,7]
[344609455,1733609441185,-151.0,0.00026297,7]
[344609456,1733609441194,-500.0,0.00026299,2]
[344609457,1733609441203,-558.38274516,0.00026299,2]
[344609458,1733609441212,-1476.38,0.00026299,2]
[344609459,1733609441221,-500.0,0.00026299,2]
[344609460,1733609441231,-163.439392,0.000263,7]
[344609461,1733609441239,-163.439392,0.000263,7]
[344609462,1733609441249,-151.0,0.000263,7]
[344609463,1733609441257,-172.094319,0.000263,7]
[344609464,1733609441266,-172.094319,0.000263,7]
[344609465,1733609441275,-442.24757384,0.000263,2]
[344609466,1733609441284,-625.30857135,0.000263,2]
[344609467,1733609441294,-500.0,0.000263,2]
[344609468,1733609441307,-500.0,0.000263,2]
[344609469,1733609441316,-400.0,0.00026301,2]
[344609470,1733609441326,-660.0,0.00026384,2]
[344609471,1733609441335,-151.0,0.00026384,7]
[344609472,1733609441344,-151.0,0.00026384,7]
[344609473,1733609441354,-151.0,0.00026384,7]
[344609474,1733609441363,-151.0,0.00026384,7]
[344609475,1733609441373,-151.0,0.00026384,7]
[344609476,1733609441384,-300.0,0.000264,12]
[344609477,1733609441393,-151.0,0.00026438,7]
[344609478,1733609441402,-213.3539429,0.00026438,2]
[344609479,1733609441412,-153.0,0.00026438,2]
[344609480,1733609441421,-290.4840486,0.00026438,2]
[344609481,1733609441431,-153.0,0.00026438,2]
[344609482,1733609441440,-213.3539429,0.00026438,2]
[344609483,1733609441450,-305.6452758,0.00026438,2]
[344609484,1733609441459,-213.3539429,0.00026438,2]
[344609485,1733609441468,-305.6452758,0.00026438,2]
[344609486,1733609441477,-153.0,0.00026438,2]
[344609487,1733609441486,-153.0,0.00026438,2]
[344609488,1733609441495,-305.6452758,0.00026438,2]
[344609489,1733609441505,-213.3539429,0.00026438,2]
[344609490,1733609441514,-213.3539429,0.00026438,2]
[344609491,1733609441524,-153.0,0.00026438,2]
[344609492,1733609441533,-305.6452758,0.00026438,2]
[344609493,1733609441542,-152.611061,0.0002645,7]
[344609494,1733609441551,-719.45,0.00026569,2]
[344609495,1733609441560,-867.12,0.00026569,2]
[344609496,1733609441569,-464.12742384,0.00026569,2]
[344609497,1733609441579,-151.0,0.0002657,7]
[344609498,1733609441587,-151.0,0.0002657,7]
[344609499,1733609441597,-161.77105248,0.00026571,2]
[344609500,1733609441606,-500.0,0.00026573,2]
[344609501,1733609441616,-1476.38,0.00026573,2]
[344609502,1733609441625,-500.0,0.00026573,2]
[344609503,1733609441634,-163.439392,0.00026574,7]
[344609504,1733609441643,-163.439392,0.00026574,7]
[344609505,1733609441652,-151.0,0.00026574,7]
[344609506,1733609441661,-172.094319,0.00026574,7]
[344609507,1733609441670,-172.094319,0.00026574,7]
[344609508,1733609441679,-500.0,0.00026574,2]
[344609509,1733609441689,-203.805199,0.00026574,7]
[344609510,1733609441698,-594.17406229,0.00026574,2]
[344609511,1733609441707,-151.0,0.00026575,7]
[344609512,1733609441716,-151.0,0.00026575,7]
[344609513,1733609441725,-629.0654872,0.00026712,2]
[344609514,1733609441734,-151.0,0.00026734,5]
[344609515,1733609441744,-151.0,0.00026734,7]
[344609516,1733609441753,-151.0,0.00026734,7]
[344609517,1733609441763,-151.0,0.00026734,7]
[344609518,1733609441772,-245.68209768,0.00026743,2]
[344609519,1733609441781,-245.68209768,0.00026782,2]
[344609520,1733609441790,-247.31479351,0.000268,2]
[344609521,1733609441799,-245.68209768,0.00026822,2]
[344609522,1733609441808,-719.45,0.00026843,2]
[344609523,1733609441818,-867.12,0.00026843,2]
[344609524,1733609441827,-151.0,0.00026844,7]
[344609525,1733609441837,-151.0,0.00026844,7]
[344609526,1733609441846,-500.0,0.00026847,2]
[344609527,1733609441855,-1476.38,0.00026847,2]
[344609528,1733609441870,-354.63716204,0.00026847,2]
[344609529,1733609441881,-172.094319,0.00026848,7]
[344609530,1733609441890,-172.094319,0.00026848,7]
[344609531,1733609441900,-500.0,0.00026848,2]
[344609532,1733609441909,-163.439392,0.00026849,7]
[344609533,1733609441918,-163.439392,0.00026849,7]
[344609534,1733609441928,-151.0,0.00026849,7]
[344609535,1733609441937,-151.0,0.00026849,7]
[344609536,1733609441946,-151.0,0.00026849,7]
[344609537,1733609441955,-245.68209768,0.00026861,2]
[344609538,1733609441964,-245.11021629,0.000269,2]
[344609539,1733609441974,-245.68209768,0.000269,2]
[344609540,1733609441983,-500.0,0.00026999,2]
[344609541,1733609441992,-345.35204042,0.00026999,2]
[344609542,1733609442001,-152.98409442,0.00026999,2]
[344609543,1733609442011,-500.0,0.00026999,2]
[344609544,1733609442020,-250.0,0.00026999,2]
[344609545,1733609442029,-176.58772242,0.00026999,2]
[344609546,1733609442038,-431.45407243,0.00026999,2]
[344609547,1733609442048,-151.0,0.00026999,7]
[344609548,1733609442057,-151.0,0.00026999,7]
[344609549,1733609442068,-151.0,0.00026999,7]
[344609550,1733609442077,-5678.47606203,0.00027,2]
[344609551,1733609442086,-291195.10872234,0.00027,7]
[344609619,1733609444168,-213.3539429,0.00026438,2]
[344609621,1733609444179,-406.48559891,0.00026871,2]
[344609623,1733609444188,-5628.91148196,0.00027,7]
[344609688,1733609446252,-6362.23188204,0.00027,7]
[344609706,1733610462435,167.450203,0.00013973,2]
[344609789,1733610632140,-1060.847723,0.000245,2]
[344609790,1733610632225,-2323.29738889,0.000245,2]
[344609792,1733610632235,-200.71,0.000247,2]
[344609793,1733610632245,-2008.00301525,0.00025,2]
[344609794,1733610632255,-1024.6,0.00025,2]
[344609795,1733610632265,-300.0,0.00025646,2]
[344609796,1733610632277,-300.0,0.00025647,2]
[344609797,1733610632287,-155.594,0.0002565,2]
[344609798,1733610632296,-1297.69055862,0.00026,30]
[344609799,1733610632309,-633.12684086,0.00026,30]
[344610639,1733611116843,167.450203,0.00013973,2]
[344610676,1733611832378,-311.68220893,0.00024,2]
[344610679,1733611832391,-688.31779107,0.00024,2]
[344610681,1733611832400,-500.0,0.00024564,2]
[344610683,1733611832411,-180.64,0.000247,2]
[344610685,1733611832424,-300.0,0.000249,11]
[344610687,1733611832434,-200.0,0.00025299,15]
[344610689,1733611832443,-151.0,0.00025423,4]
[344610693,1733611832453,-155.228,0.0002565,2]
[344610696,1733611832462,-367.82491185,0.00025778,2]
[344610699,1733611832472,-213.3539429,0.00025778,2]
[344610703,1733611832482,-305.6452758,0.00025778,2]